bitfinex-derivatives/quotes_ETHF0:USTF0_20250320
["timestamp","ask_amount","ask_price","bid_price","bid_amount"]
[1742480225639,4.5124,2000.1,1999.9,50.90703027]
[1742480225937,4.20818,2000.0,1999.9,46.33363027]
[1742480226138,4.20818,2000.0,1999.9,0.06863027]
[1742480227035,8.72058,2000.0,1999.9,1.06906027]
[1742480227235,7.7202,2000.0,1999.9,4.64206027]
[1742480227634,8.72058,2000.0,1999.9,3.64163027]
[1742480227834,3.2078,2000.0,1999.9,6.14163027]
[1742480228036,19.41308586,2001.2,2000.2,2.50062]
[1742480228237,1.00007,2000.6,2000.5,3.2078]
[1742480228535,1.00007,2000.6,2000.5,3.27643027]
[1742480228743,3.20779504,2000.6,2000.5,4.27655027]
[1742480228941,7.922,2000.9,2000.5,3.27643027]
[1742480229237,21.36567016,2001.0,2000.9,0.99993]
[1742480229541,0.99988,2001.0,2000.9,0.06863027]
[1742480229843,4.20767504,2001.0,2000.9,0.06863027]
[1742480230042,4.7142,2001.1,2000.9,0.06863027]
[1742480230241,0.99988,2001.0,2000.9,0.06863027]
[1742480230446,4.20767504,2001.0,2000.9,0.06863027]
[1742480230737,8.80387504,2001.0,2000.9,0.06863027]
[1742480232043,7.80399504,2001.0,2000.9,0.06863027]
[1742480232243,0.99975,2001.3,2000.9,3.27643027]
[1742480232550,0.93119973,2001.1,2001.0,46.238]
[1742480233046,4.13899477,2001.1,2001.0,46.238]
[1742480233544,8.82569477,2001.1,2001.0,46.238]
[1742480233746,0.99993,2000.9,2000.8,0.00750732]
[1742480233986,4.20772504,2000.9,2000.8,0.00750732]
[1742480234210,0.99993,2000.9,2000.8,0.00750732]
[1742480234340,4.6867,2001.1,2000.8,0.00750732]
[1742480234644,3.20779504,2001.0,2000.8,0.00750732]
[1742480234949,4.20758504,2001.2,2001.0,0.99988]
[1742480235147,4.20758504,2001.2,2001.1,4.61083]
[1742480235148,3.20779504,2001.2,2001.1,4.61083]
[1742480235442,3.2078,2001.5,2001.1,3.611]
[1742480235639,3.2078,2001.8,2001.3,2.49932]
[1742480235840,5.70617,2002.1,2001.5,4.20741]
[1742480236042,2.49861,2001.9,2001.3,0.00750732]
[1742480236239,0.99959,2001.6,2001.4,3.624]
[1742480236543,0.99963,2001.5,2001.4,3.624]
[1742480236741,5.57493,2001.5,2001.4,4.62368]
[1742480236943,5.57493,2001.5,2001.4,3.624]
[1742480237250,4.20742504,2001.5,2001.4,3.624]
[1742480237741,4.5753,2001.6,2001.5,0.99963]
[1742480237943,11.4871,2002.3,2002.0,0.99934]
[1742480237944,0.9993,2002.2,2002.0,0.99934]
[1742480238134,8.78239504,2002.2,2002.0,0.99935]
[1742480238336,4.5753,2002.2,2002.1,4.61633]
[1742480238543,3.2078,2002.3,2002.2,0.99928]
[1742480238742,4.3531,2003.0,2002.1,9.3248]
[1742480238936,2.49757,2002.7,2002.1,6.8248]
[1742480239139,0.99922,2002.4,2002.2,3.62]
[1742480239348,0.99922,2002.4,2002.3,0.00750732]
[1742480239736,4.20701504,2002.4,2002.3,0.00750732]
[1742480240147,4.20701504,2002.4,2002.3,7.32e-06]
[1742480240553,3.20779504,2002.4,2002.3,7.32e-06]
[1742480240749,0.00743659,2002.6,2002.5,0.99913]
[1742480240939,0.00743659,2002.6,2002.5,4.67213]
[1742480241248,0.00743659,2002.6,2002.3,3.20780732]
[1742480241249,1.00652659,2002.6,2002.4,0.99915]
[1742480241449,4.21432163,2002.6,2002.4,0.99915]
[1742480241646,4.21432163,2002.6,2002.3,3.20780732]
[1742480241647,3.20779504,2002.5,2002.3,3.20780732]
[1742480241839,4.20692504,2002.5,2002.4,3.673]
[1742480242041,1.00652659,2002.6,2002.4,3.673]
[1742480242249,3.20779504,2002.5,2002.4,4.67216]
[1742480242554,0.00743659,2002.6,2002.5,0.99913]
[1742480242754,0.00743659,2002.6,2002.5,5.67213]
[1742480243050,0.00743659,2002.6,2002.5,48.97213]
[1742480243247,7.5609,2003.1,2002.5,52.3779]
[1742480243449,3.20779504,2003.0,2002.9,0.99892]
[1742480243641,3.2078,2003.1,2003.0,0.99888]
[1742480243847,3.2078,2003.5,2003.0,4.673]
[1742480244046,3.2078,2003.5,2003.1,3.683]
[1742480244248,3.20779504,2003.4,2003.1,3.683]
[1742480244542,3.20779504,2003.4,2003.0,0.00748615]
[1742480244749,3.20779504,2003.3,2003.0,0.00748615]
[1742480244945,5.70481,2003.2,2002.6,6.8918]
[1742480245143,0.99899,2002.8,2002.7,0.99899]
[1742480245348,4.20665504,2003.1,2003.0,0.99888]
[1742480245554,3.20779504,2003.0,2002.9,0.99893]
[1742480245741,3.20779504,2003.1,2002.8,3.685]
[1742480246049,4.20663504,2003.1,2003.0,0.99883]
[1742480246248,0.00741559,2003.4,2003.3,0.99873]
[1742480246448,0.00741559,2003.4,2002.9,7.19989]
[1742480246449,3.20779504,2003.3,2002.9,3.2078]
[1742480246647,0.00741559,2003.4,2003.0,6.2092]
[1742480246845,2.49498,2004.8,2004.2,0.99828]
[1742480247044,620.93267111,2008.3,2004.8,0.99798]
[1742480247045,3.20779504,2004.9,2004.8,0.99798]
[1742480247254,6.9498,2005.7,2004.7,3.2078]
[1742480247559,3.2078,2005.0,2004.3,7.9104]
[1742480248048,3.2078,2005.0,2003.2,3.2078]
[1742480248049,5.70332,2004.4,2003.2,3.2078]
[1742480248242,6.9858,2004.3,2003.5,3.2078]
[1742480248443,3.2078,2004.3,2003.8,3.2078]
[1742480248747,3.20779504,2004.3,2003.8,3.2078]
[1742480248952,3.20779504,2004.2,2003.9,4.6145]
[1742480249150,9.55433,2004.4,2003.8,3.2078]
[1742480249348,3.2078,2004.1,2003.5,46.17]
[1742480249542,0.99858,2003.6,2003.5,46.17]
[1742480249851,3.882,2004.0,2003.6,0.00748615]
[1742480249852,0.99853,2003.7,2003.6,0.00748615]
[1742480250252,4.20632504,2003.7,2003.6,0.00748615]
[1742480250753,3.20779504,2003.7,2003.6,3.21528615]
[1742480251054,0.99842,2004.0,2003.7,0.99852]
[1742480251252,4.20619504,2004.0,2003.6,12.70433615]
[1742480251563,3.20779504,2003.9,2003.6,11.70578615]
[1742480251758,4.4531,2004.1,2003.6,8.08984615]
[1742480251759,3.20779504,2004.0,2003.6,8.08984615]
[1742480251954,0.99846,2003.9,2003.6,7.09128615]
[1742480252157,0.99853,2003.7,2003.6,3.21528615]
[1742480252459,5.71954,2003.9,2003.6,3.21528615]
[1742480252648,4.7211,2003.9,2003.6,7.83598615]
[1742480252960,0.99853,2003.7,2003.6,0.00748615]
[1742480253253,4.20630504,2003.8,2003.6,0.00748615]
[1742480253560,0.99849,2003.8,2003.6,0.00748615]
[1742480253749,3.2078,2004.6,2003.6,14.20498615]
[1742480253950,7.5839,2005.0,2004.6,0.99807]
[1742480254149,2.49429,2005.4,2004.7,3.88]
[1742480254150,3.2078,2005.4,2004.7,3.88]
[1742480254356,4.7211,2005.2,2004.7,8.5007]
[1742480254654,3.20779504,2005.1,2005.0,0.99788]
[1742480254959,4.7211,2005.2,2005.0,4.87685]
[1742480254960,7.92889504,2005.2,2005.0,4.87685]
[1742480255145,0.99747,2005.9,2005.6,0.99756]
[1742480255350,0.99758,2005.6,2005.5,49.3608]
[1742480255660,9.59361,2005.8,2005.0,49.3608]
[1742480255954,3.2078,2005.2,2005.0,46.153]
[1742480256156,3.2078,2005.2,2004.4,2.49545]
[1742480256157,4.5507,2005.1,2004.6,1.00553615]
[1742480256358,7.75849504,2005.1,2004.6,0.00748615]
[1742480256558,0.99803,2004.7,2004.6,0.00748615]
[1742480257060,4.20582504,2004.7,2004.6,0.00748615]
[1742480257562,2.49527,2004.6,2003.9,3.2078]
[1742480257759,2.49527,2004.6,2003.7,46.138]
[1742480257760,3.2078,2004.4,2003.7,46.138]
[1742480257961,2.49504,2004.8,2004.6,0.99806]
[1742480257962,3.2078,2004.8,2004.6,0.99806]
[1742480258261,7.90499504,2004.7,2004.5,0.99811]
[1742480258452,7.90499504,2004.7,2004.4,50.063]
[1742480258654,0.99813,2004.5,2004.4,50.07048615]
[1742480259148,7.90499504,2004.5,2004.4,51.06866615]
[1742480259347,0.99813,2004.5,2004.4,50.07048615]
[1742480259560,4.20592504,2004.5,2004.4,0.00748615]
[1742480259755,0.99823,2004.3,2004.2,3.2078]
[1742480259949,7.90499504,2004.4,2003.9,3.2078]
[1742480260154,5.69551,2004.2,2003.9,4.20621]
[1742480260355,0.99838,2004.0,2003.9,11.5962]
[1742480260759,4.20617504,2004.0,2003.9,11.5962]
[1742480260957,3.20779504,2004.0,2003.9,11.5962]
[1742480261352,4.20617504,2004.0,2003.9,3.2078]
[1742480261552,8.79567504,2004.0,2003.9,3.2078]
[1742480262067,0.99843,2003.9,2003.8,46.131]
[1742480262267,8.79572504,2003.9,2003.8,46.131]
[1742480262575,8.79572504,2003.9,2003.7,0.00748615]
[1742480262576,0.99848,2003.8,2003.7,0.00748615]
[1742480262863,0.99866,2003.5,2003.3,46.131]
[1742480263064,5.58818,2003.4,2003.3,46.131]
[1742480263567,8.78848889,2003.4,2003.3,46.131]
[1742480263864,5.58818,2003.4,2003.3,50.067]
[1742480264061,0.99873,2003.3,2003.2,3.2078]
[1742480264254,3.20030889,2003.3,2003.2,4.20658]
[1742480264453,4.19903889,2003.3,2003.2,7.7392]
[1742480264663,3.20030889,2003.3,2003.2,8.73798]
[1742480264861,4.4586,2003.5,2003.4,0.99868]
[1742480265063,3.2078,2004.2,2003.4,3.943]
[1742480265256,4.4586,2003.9,2003.6,0.99855]
[1742480265456,4.4586,2003.9,2003.5,4.20641]
[1742480265660,3.20030889,2003.8,2003.3,3.947]
[1742480265964,0.99873,2003.3,2003.2,3.2078]
[1742480266361,4.19903889,2003.3,2003.2,3.2078]
[1742480266671,3.20030889,2003.3,2003.2,4.20658]
[1742480267166,7.47310889,2003.3,2003.2,4.20658]
[1742480267359,8.47183889,2003.3,2003.2,4.20658]
[1742480267867,7.47310889,2003.3,2003.2,4.20658]
[1742480268263,0.99878,2003.2,2003.1,40.80748615]
[1742480268465,8.47188889,2003.2,2003.1,40.80748615]
[1742480268673,8.47188889,2003.2,2003.1,0.00748615]
[1742480269265,0.99888,2003.0,2002.9,3.2078]
[1742480269571,2.49746,2002.8,2002.4,3.2078]
[1742480269867,0.99906,2002.7,2002.4,3.2078]
[1742480270076,0.99908,2002.6,2002.5,0.9991]
[1742480270261,0.99908,2002.6,2002.4,3.2078]
[1742480270462,0.99908,2002.6,2002.5,0.99913]
[1742480270864,0.99908,2002.6,2002.5,0.99912]
[1742480270865,0.9991,2002.6,2002.5,0.99912]
[1742480271068,0.99886,2003.1,2002.9,0.99889]
[1742480271271,4.3542,2003.2,2002.9,3.2078]
[1742480271961,0.99884,2003.1,2003.0,0.99884]
[1742480272174,4.3542,2003.2,2003.1,0.99883]
[1742480272564,5.35298,2003.2,2003.1,40.8]
[1742480272873,4.3542,2003.2,2003.1,45.72683]
[1742480273072,0.99877,2003.3,2003.2,0.99878]
[1742480273267,0.99878,2003.2,2003.1,44.728]
[1742480273676,0.99878,2003.2,2003.1,40.8]
[1742480273866,0.99888,2003.0,2002.9,3.2078]
[1742480274171,0.99886,2003.1,2003.0,0.99888]
[1742480274367,0.99883,2003.1,2003.0,40.8]
[1742480274771,0.99883,2003.1,2003.0,0.99888]
[1742480275084,0.99888,2003.0,2002.9,7.1358]
[1742480275269,5.55838,2003.0,2002.9,45.00673]
[1742480275472,5.55838,2003.0,2002.9,48.93273]
[1742480275662,5.55838,2003.0,2002.9,47.9338]
[1742480275866,5.55838,2003.0,2002.9,48.93273]
[1742480276073,5.55838,2003.0,2002.9,7.1338]
[1742480276268,5.55838,2003.0,2002.9,3.2078]
[1742480276774,4.5595,2003.0,2002.9,4.20673]
[1742480276973,4.5595,2003.0,2002.9,3.2078]
[1742480277174,0.00748615,2003.5,2003.0,2.4972]
[1742480277375,0.99873,2003.3,2003.2,0.99874]
[1742480277572,4.6208,2003.4,2003.2,0.99874]
[1742480277573,5.61951,2003.4,2003.3,0.99873]
[1742480277871,0.99873,2003.3,2003.2,7.1278]
[1742480278070,5.61953,2003.3,2003.2,7.1278]
[1742480278470,5.61953,2003.3,2003.2,8.12658]
[1742480278775,5.61953,2003.3,2003.2,7.1278]
[1742480278976,5.61953,2003.3,2003.2,3.2078]
[1742480279675,5.61956,2003.3,2003.2,0.99878]
[1742480279879,4.6208,2003.3,2003.1,0.99878]
[1742480280169,4.6208,2003.3,2003.1,0.99883]
[1742480280362,5.61957,2003.3,2003.2,3.2078]
[1742480280569,4.6208,2003.3,2003.2,4.20658]
[1742480281173,0.00748615,2003.5,2003.4,0.99868]
[1742480281370,1.00615615,2003.5,2003.4,3.901]
[1742480281571,0.00748615,2003.5,2003.4,4.89968]
[1742480281969,4.5486,2004.2,2003.5,2.49655]
[1742480282281,0.99842,2004.0,2003.9,0.99842]
[1742480282469,4.6998,2004.1,2003.8,7.1068]
[1742480282470,0.99843,2003.9,2003.8,7.1068]
[1742480283571,0.99843,2003.9,2003.8,8.10528]
[1742480283771,7.20315615,2004.1,2003.8,3.2078]
[1742480283772,5.70563615,2004.1,2003.8,3.2078]
[1742480284077,0.00748615,2004.1,2004.0,0.99838]
[1742480284375,1.00581615,2004.1,2004.0,40.8]
[1742480284567,0.99843,2003.9,2003.8,7.1028]
[1742480284767,0.99843,2003.9,2003.8,3.2078]
[1742480285164,4.6998,2004.0,2003.6,46.15248615]
[1742480285365,0.99853,2003.7,2003.6,50.04748615]
[1742480285574,0.99853,2003.7,2003.6,46.15248615]
[1742480286067,0.99853,2003.7,2003.6,0.00748615]
[1742480287072,5.65593,2003.7,2003.6,0.00748615]
[1742480287478,0.99873,2003.3,2003.2,7.0978]
[1742480287878,0.99873,2003.3,2003.2,3.2078]
[1742480288982,0.99873,2003.3,2003.2,4.20658]
[1742480289376,0.99867,2003.5,2003.2,3.2078]
[1742480289579,0.99866,2003.5,2003.2,3.2078]
[1742480289883,0.99873,2003.3,2003.2,4.20655]
[1742480290175,4.351,2003.7,2003.2,3.2078]
[1742480290377,0.99858,2003.6,2003.5,3.2078]
[1742480290578,0.99858,2003.6,2003.5,7.0808]
[1742480290779,0.99858,2003.6,2003.5,47.8808]
[1742480290981,0.99858,2003.6,2003.5,44.0078]
[1742480291674,0.99858,2003.6,2003.5,3.2078]
[1742480292777,0.99858,2003.6,2003.3,3.861]
[1742480292778,0.99868,2003.4,2003.3,3.861]
[1742480293882,0.99868,2003.4,2003.1,54.0468]
[1742480293883,0.99878,2003.2,2003.1,3.2078]
[1742480294180,2.49675,2003.4,2003.0,0.00748615]
[1742480294181,0.99883,2003.1,2003.0,0.00748615]
[1742480294578,0.99883,2003.1,2003.0,6.15e-06]
[1742480294879,5.64133,2003.1,2003.0,6.15e-06]
[1742480295276,8.14133,2003.1,2003.0,6.15e-06]
[1742480296779,8.14133,2003.1,2002.4,3.2078]
[1742480296780,0.99913,2002.5,2002.4,3.2078]
[1742480297078,0.99913,2002.5,2002.1,40.8]
[1742480297079,0.99928,2002.2,2002.1,40.8]
[1742480297378,6.34607,2002.3,2001.9,3.2078]
[1742480297582,4.6032,2002.1,2001.7,0.99951]
[1742480297778,0.99946,2001.9,2001.7,5.29078]
[1742480298079,0.00748615,2002.1,2001.9,0.9994]
[1742480298383,1.00683615,2002.1,2002.0,7.4991]
[1742480299084,12.8516,2002.7,2002.0,7.4991]
[1742480299276,4.6032,2002.5,2002.1,8.2012]
[1742480299473,0.99928,2002.2,2002.1,3.854]
[1742480299683,0.99928,2002.2,2002.1,40.8]
[1742480299985,0.99933,2002.1,2002.0,46.153]
[1742480300379,0.99948,2001.8,2001.7,3.21528615]
[1742480300878,0.99946,2001.9,2001.7,4.21477615]
[1742480301077,2.49822,2002.2,2001.8,0.99947]
[1742480301282,0.99948,2001.8,2001.7,8.64309615]
[1742480301488,4.3245,2002.1,2001.7,14.00240615]
[1742480301778,4.3245,2002.1,2002.0,0.99938]
[1742480302287,4.3245,2002.1,2001.9,0.99942]
[1742480302481,5.32383,2002.1,2002.0,8.63548]
[1742480303082,5.32383,2002.1,2002.0,4.20718]
[1742480303582,0.00748615,2002.3,2002.2,0.99928]
[1742480304372,0.99891,2003.0,2002.3,2.49807]
[1742480304576,0.99884,2003.1,2003.0,0.99888]
[1742480304881,0.99888,2003.0,2002.9,9.4516]
[1742480305081,0.99885,2003.1,2003.0,0.99884]
[1742480305282,0.99885,2003.1,2003.0,46.38854]
[1742480305484,4.2982,2003.2,2003.1,0.99883]
[1742480305485,5.29702,2003.2,2003.1,0.99883]
[1742480305685,0.99883,2003.1,2003.0,46.38853]
[1742480306088,0.99883,2003.1,2003.0,46.38854]
[1742480306390,0.99881,2003.2,2003.1,0.99883]
[1742480306593,0.99883,2003.1,2003.0,45.3897]
[1742480306788,5.37163,2003.1,2003.0,45.3897]
[1742480306987,0.99888,2003.0,2002.9,53.2328]
[1742480307287,0.99893,2002.9,2002.8,0.00748615]
[1742480308385,4.3728,2003.0,2002.9,0.99893]
[1742480308592,4.3728,2003.0,2002.9,4.504]
[1742480308792,5.37168,2003.0,2002.9,4.504]
[1742480308991,0.99893,2002.9,2002.8,1.00646615]
[1742480309193,5.37173,2002.9,2002.8,1.00646615]
[1742480309594,5.37173,2002.9,2002.8,0.00748615]
[1742480310096,5.37173,2002.9,2002.8,1.00646615]
[1742480310294,5.37173,2002.9,2002.8,0.00748615]
[1742480310601,0.99911,2002.6,2002.5,0.99911]
[1742480310898,0.99913,2002.5,2002.4,50.017]
[1742480311092,5.50793,2002.5,2002.4,46.162]
[1742480311890,5.50793,2002.5,2002.4,47.16118]
[1742480312204,5.50793,2002.5,2002.4,46.162]
[1742480312900,0.99918,2002.4,2002.3,3.2078]
[1742480313202,5.27178,2002.4,2002.3,3.2078]
[1742480313390,0.99923,2002.3,2002.2,0.00748615]
[1742480313593,5.27183,2002.3,2002.2,0.00748615]
[1742480313895,5.27183,2002.3,2002.2,1.00676615]
[1742480314289,5.27183,2002.3,2002.2,4.21456615]
[1742480314497,4.2726,2002.3,2002.2,8.66336615]
[1742480314702,0.99912,2002.6,2002.5,0.99913]
[1742480314904,4.20686,2002.7,2002.6,0.99908]
[1742480315106,4.2726,2002.8,2002.7,0.99903]
[1742480315294,0.99898,2002.8,2002.7,0.99903]
[1742480315597,0.99898,2002.8,2002.7,5.44783]
[1742480315801,4.2726,2002.9,2002.8,0.99898]
[1742480315994,2.49696,2003.2,2002.8,3.2078]
[1742480315995,2.49698,2003.2,2002.8,3.2078]
[1742480316195,0.99888,2003.0,2002.9,4.5313]
[1742480316991,0.99888,2003.0,2002.9,5.53023]
[1742480317193,0.99888,2003.0,2002.9,4.5313]
[1742480317397,0.99893,2002.9,2002.8,7.0518]
[1742480317701,0.99903,2002.7,2002.6,5.53038]
[1742480317900,0.99908,2002.6,2002.5,8.2731]
[1742480318103,0.99908,2002.6,2002.5,9.27219]
[1742480318504,7.14299,2002.9,2002.5,8.2731]
[1742480318706,0.99907,2002.7,2002.6,0.99905]
[1742480318899,0.99907,2002.7,2002.6,4.83905]
[1742480319101,0.99907,2002.7,2002.6,3.84]
[1742480319504,0.99913,2002.5,2002.4,3.2078]
[1742480319697,5.38332,2002.6,2002.4,7.0438]
[1742480319900,5.38332,2002.6,2002.5,0.99913]
[1742480320403,0.99912,2002.6,2002.5,0.99913]
[1742480320805,0.99907,2002.7,2002.6,0.99904]
[1742480320998,4.3842,2002.7,2002.6,0.99904]
[1742480321194,0.999,2002.8,2002.6,0.99904]
[1742480321195,5.70501,2003.0,2002.6,0.99904]
[1742480321399,5.70501,2003.0,2002.8,0.99896]
[1742480321400,0.99896,2002.9,2002.8,0.99896]
[1742480321605,0.99898,2002.8,2002.7,8.03579]
[1742480321803,0.99898,2002.8,2002.7,8.03583]
[1742480322101,0.99898,2002.8,2002.7,7.0368]
[1742480322407,0.99898,2002.8,2002.7,3.2078]
[1742480322610,2.49755,2002.8,2002.5,0.99908]
[1742480322803,0.99902,2002.8,2002.7,0.99898]
[1742480323005,0.99902,2002.8,2002.7,41.79898]
[1742480323411,0.99895,2002.9,2002.8,0.99898]
[1742480323706,3.2078,2003.0,2002.9,0.99893]
[1742480323707,4.7135,2003.0,2002.9,0.99893]
[1742480323904,5.71238,2003.0,2002.9,4.82693]
[1742480324310,0.00748615,2003.3,2003.2,0.99878]
[1742480324606,5.70385,2004.0,2003.6,0.99855]
[1742480324908,5.51643,2003.7,2003.6,0.99858]
[1742480325502,0.99853,2003.7,2003.6,0.99858]
[1742480325707,0.99855,2003.7,2003.6,0.99853]
[1742480325903,5.51641,2003.8,2003.7,0.99853]
[1742480326411,4.5179,2003.8,2003.7,0.99853]
[1742480326706,1.06681615,2003.9,2003.5,7.0378]
[1742480326911,1.06681615,2003.9,2003.8,0.99848]
[1742480327101,1.06681615,2003.9,2003.8,8.02328]
[1742480327615,1.06681615,2003.9,2003.8,54.17128]
[1742480328107,1.06681615,2003.9,2003.8,94.97128]
[1742480328308,1.06681615,2003.9,2003.8,97.47128]
[1742480328502,0.99825,2004.3,2004.0,2.49595]
[1742480328708,0.99828,2004.2,2004.1,8.02213]
[1742480329010,5.50808,2004.2,2004.1,4.20613]
[1742480329207,4.5098,2004.5,2004.1,9.51763]
[1742480329404,0.99818,2004.4,2004.3,0.9982]
[1742480329902,0.99823,2004.3,2004.2,41.79825]
[1742480330212,5.50803,2004.3,2004.2,40.8]
[1742480330407,5.50803,2004.3,2004.2,41.79828]
[1742480330599,1.00566615,2004.5,2004.4,0.99818]
[1742480330804,4.46478615,2004.5,2004.4,4.80418]
[1742480331010,4.46478615,2004.5,2004.4,8.01198]
[1742480331715,0.00748615,2004.5,2004.4,8.01198]
[1742480332214,0.00748615,2004.5,2004.4,8.00698]
[1742480332409,1.00561615,2004.5,2004.4,8.00698]
[1742480332614,1.00561615,2004.5,2004.4,3.801]
[1742480332913,0.00748615,2004.5,2004.1,3.2078]
[1742480333219,0.99828,2004.2,2004.1,3.2078]
[1742480333513,0.99838,2004.0,2003.9,0.99843]
[1742480333715,0.99843,2003.9,2003.8,46.148]
[1742480333914,4.4261,2003.9,2003.8,47.14648]
[1742480334211,4.4261,2003.9,2003.8,51.45228]
[1742480334804,5.42453,2003.9,2003.8,51.45228]
[1742480335004,4.4261,2003.9,2003.8,51.45228]
[1742480335214,0.99842,2004.0,2003.9,0.99843]
[1742480335411,9.2074,2004.4,2004.0,0.99838]
[1742480335604,5.48373,2004.4,2004.3,0.99823]
[1742480336008,0.99827,2004.3,2004.2,0.99824]
[1742480336207,0.99827,2004.3,2004.2,4.78924]
[1742480336413,0.9982,2004.4,2004.3,0.99818]
[1742480336915,0.00748615,2004.5,2004.4,0.99818]
[1742480337112,4.48548615,2004.5,2004.4,0.99818]
[1742480337317,5.48365615,2004.5,2004.4,0.99818]
[1742480337813,0.00748615,2004.5,2004.4,4.20598]
[1742480338015,0.00748615,2004.5,2004.4,8.65408]
[1742480339212,0.00748615,2004.5,2004.4,4.20598]
[1742480339522,4.48548615,2004.5,2004.4,8.00098]
[1742480339718,5.48361615,2004.5,2004.4,7.0028]
[1742480340016,4.48548615,2004.5,2004.4,3.2078]
[1742480340208,5.48361615,2004.5,2004.4,4.20598]
[1742480340615,5.48361615,2004.5,2004.4,3.2078]
[1742480341020,0.99818,2004.4,2004.3,0.99822]
[1742480341215,4.5567,2004.4,2004.3,0.99822]
[1742480341421,5.55494,2004.4,2004.3,0.99823]
[1742480341624,0.99826,2004.3,2004.2,0.99823]
[1742480341822,0.99828,2004.2,2004.1,7.99108]
[1742480342016,2.4957,2004.2,2003.8,50.35424]
[1742480342323,0.99843,2003.9,2003.8,50.35425]
[1742480342621,0.99843,2003.9,2003.8,47.14648]
[1742480343423,0.99843,2004.0,2003.9,0.99841]
[1742480343624,0.99843,2003.9,2003.8,46.148]
[1742480344821,0.99858,2003.6,2003.5,3.2078]
[1742480348118,4.5073,2003.8,2003.7,0.99853]
[1742480348421,5.50578,2003.8,2003.7,0.99853]
[1742480348627,0.99854,2003.7,2003.6,0.99854]
[1742480348823,5.56124,2003.7,2003.6,0.99854]
[1742480349123,12.9651,2004.1,2003.6,0.99854]
[1742480349322,10.19848,2004.1,2004.0,0.99838]
[1742480349822,3.2078,2004.6,2004.0,40.8]
[1742480350024,3.2078,2004.6,2004.4,0.99818]
[1742480350025,8.9669,2004.6,2004.4,0.99818]
[1742480350224,1.00561615,2004.5,2004.4,4.20598]
[1742480350429,5.27471615,2004.5,2004.4,3.2078]
[1742480350725,4.27658615,2004.5,2004.2,7.6702]
[1742480350926,4.27658615,2004.5,2004.2,3.2078]
[1742480351127,4.27658615,2004.5,2004.4,0.99818]
[1742480351729,0.00748615,2004.5,2004.4,0.99818]
[1742480352321,0.99823,2004.3,2004.2,6.9948]
[1742480352526,5.4532,2004.4,2004.3,0.99823]
[1742480352727,5.45318,2004.4,2004.3,5.32983]
[1742480353030,0.00748615,2004.5,2004.4,0.99818]
[1742480353232,1.00561615,2004.5,2004.4,5.32978]
[1742480353431,0.00748615,2004.5,2004.4,5.32978]
[1742480354023,1.00561615,2004.5,2004.4,4.3316]
[1742480354425,0.00748615,2004.5,2004.2,5.70348]
[1742480354627,1.00561615,2004.5,2004.4,5.32978]
[1742480354829,1.00561615,2004.5,2004.3,0.9982]
[1742480354830,0.99821,2004.4,2004.3,0.9982]
[1742480355019,5.45321,2004.4,2004.3,9.1168]
[1742480355419,5.45321,2004.4,2004.3,9.11683]
[1742480355624,0.00748615,2004.5,2004.4,0.99818]
[1742480355820,0.00748615,2004.5,2004.4,5.76498]
[1742480356423,0.99818,2004.4,2004.3,3.787]
[1742480356728,0.00748615,2004.5,2004.4,0.99818]
[1742480357039,0.99779,2005.2,2005.1,0.99779]
[1742480357430,3.794,2005.5,2005.0,3.2078]
[1742480357733,9.0543,2005.6,2005.5,0.99763]
[1742480357935,9.0543,2006.1,2005.5,49.913]
[1742480358128,0.99744,2005.9,2005.7,4.2053]
[1742480358328,0.99743,2005.9,2005.8,3.797]
[1742480358539,0.99743,2005.9,2005.8,8.3609]
[1742480358731,0.99748,2005.8,2005.7,3.2078]
[1742480358926,0.99758,2005.6,2005.5,86.921]
[1742480359237,0.99758,2005.6,2005.5,46.121]
[1742480359434,0.99768,2005.4,2005.3,0.00748615]
[1742480359740,0.99788,2005.0,2004.9,46.113]
[1742480360632,0.99788,2005.0,2004.9,50.6769]
[1742480361134,0.99788,2005.0,2004.9,46.113]
[1742480361323,0.99798,2004.8,2004.7,3.21528615]
[1742480362830,0.99798,2004.8,2004.7,0.00748615]
[1742480363037,0.99813,2004.5,2004.4,49.3208]
[1742480363237,0.9983,2004.2,2004.1,3.2078]
[1742480363539,4.3665,2004.4,2004.1,0.99829]
[1742480363736,0.99832,2004.2,2004.0,4.639]
[1742480363930,5.36483,2004.1,2004.0,5.63738]
[1742480364133,5.36483,2004.1,2004.0,4.639]
[1742480364438,5.36483,2004.1,2003.9,3.80348615]
[1742480364439,5.36484,2004.1,2003.9,0.00748615]
[1742480364638,0.00748615,2004.3,2004.1,0.9983]
[1742480364828,1.00574615,2004.3,2004.2,4.6114]
[1742480365027,0.99828,2004.2,2004.1,3.2078]
[1742480365231,0.99838,2004.0,2003.9,3.21528615]
[1742480366131,0.99834,2004.1,2003.9,3.21528615]
[1742480366333,5.54678,2004.0,2003.9,0.00748615]
[1742480366741,10.07948,2004.0,2003.9,0.00748615]
[1742480367346,4.5484,2004.0,2003.9,0.00748615]
[1742480367643,5.54678,2004.0,2003.9,0.00748615]
[1742480370234,4.5484,2004.0,2003.9,1.00591615]
[1742480370435,4.5484,2004.0,2003.9,5.73821615]
[1742480370940,0.00748615,2004.3,2004.2,0.99828]
[1742480371135,0.00748615,2004.3,2004.2,4.20608]
[1742480371330,4.4239,2004.6,2004.5,0.99813]
[1742480371531,16.1214,2005.0,2004.7,0.99801]
[1742480371736,0.99798,2004.8,2004.7,0.99801]
[1742480372135,4.4239,2004.9,2004.8,0.99798]
[1742480372340,4.4239,2004.9,2004.8,4.7323]
[1742480372341,5.42183,2004.9,2004.8,4.7323]
[1742480372540,4.4239,2004.9,2004.8,5.73028]
[1742480372842,0.00748615,2005.1,2004.8,5.73028]